[Event "LTU-ch Women 2020"]
[Site "Vilnius"]
[Date "2020.11.20"]
[Round "1.4"]
[White "Plutaite, Ausra"]
[Black "Sulikiene, Kristina"]
[Result "1-0"]
[ECO "C42"]
[WhiteElo "1400"]
[BlackElo "1892"]
[Annotator "NA RC"]
[PlyCount "61"]
[EventDate "2020.11.20"]
[EventType "swiss"]
[EventCountry "LTU"]
[SourceTitle "playchess.com"]
[Source "ChessBase"]
[SourceQuality "1"]
[TimeControl "40/5400+30:1800+30"]

1. e4 {[%emt 0:00:00]} e5 {[%emt 0:00:00]} 2. Nf3 {[%emt 0:00:02]} Nf6 {[%emt 0:00:00]} 3. Nxe5 {[%emt 0:00:06]} d6 {[%emt 0:00:00]} 4. Nf3 {[%emt 0:00:14]} Nxe4 {[%emt 0:00:00]} 5. d3 {[%emt 0:00:19]} Nf6 {[%emt 0:00:00]} 6. d4 {[%emt 0:00:06]} Be7 {[%emt 0:00:14]} 7. Bd3 {[%emt 0:00:22]} O-O {[%emt 0:00:11]} 8. O-O {[%emt 0:00:19]} Bg4 {[%emt 0:00:24] 8...c5 is the fancy move.} 9. Bg5 {[%emt 0:00:11]} h6 {[%emt 0:00:31]} 10. Bh4 {[%emt 0:00:23]} Nc6 {[%emt 0:00:17]} 11. c3 {[%emt 0:00:13] [#]} d5 $146 {[%emt 0:01:01]} ({Predecessor:} 11... Re8 12. Re1 Nh7 13. Bxe7 Rxe7 14. Nbd2 Ng5 15. Rxe7 Qxe7 16. h3 Bh5 17. Kf1 Qf6 {½-½ (62) Jankovic,J (1956)-Havran,M (2101) Belgrade 2015}) 12. Nbd2 {[%emt 0:00:09]} Ne4 {[%emt 0:01:04]} 13. Bxe7 {[%emt 0:00:31]} Qxe7 {[%emt 0:00:10]} 14. Re1 {[%emt 0:00:49]} f5 {[%emt 0:00:28]} 15. Qb3 {[%emt 0:01:24]} Qd7 {[%emt 0:05:48]} 16. Nxe4 {[%emt 0:05:16]} fxe4 {[%emt 0:01:00]} 17. Bxe4 {[%emt 0:00:19]} Be6 {[%emt 0:01:44]} 18. Bd3 {[%emt 0:01:38]} Rxf3 {[%emt 0:06:06]} 19. gxf3 {[%emt 0:00:31]} Rf8 {[%emt 0:00:50]} 20. Re3 {[%emt 0:00:37]} Bh3 {[%emt 0:00:52]} 21. Rae1 {[%emt 0:01:24]} Qd8 {[%emt 0:02:35]} 22. f4 {[%emt 0:00:33]} Bc8 {[%emt 0:01:45]} 23. Be4 {[%emt 0:03:18]} Ne7 $18 {[%emt 0:03:49]} 24. Bf3 {[%emt 0:02:20]} Rf7 {[%emt 0:03:44]} 25. Bxd5 {[%emt 0:04:03]} Qxd5 {[%emt 0:02:58]} 26. Rxe7 {[%emt 0:00:34]} Qxb3 {[%emt 0:00:43]} 27. axb3 {[%emt 0:00:07]} Rxf4 {[%emt 0:01:00]} 28. Re8+ {[%emt 0:00:24]} Rf8 {[%emt 0:00:11]} 29. R1e7 {[%emt 0:00:10]} c6 {[%emt 0:01:10]} 30. Rxf8+ {[%emt 0:00:17]} Kxf8 {[%emt 0:00:10]} 31. Rc7 {[%emt 0:00:03]} 1-0

[Event "LTU-ch Women 2020"]
[Site "Vilnius"]
[Date "2020.11.20"]
[Round "1.5"]
[White "Perminaite, Guoda"]
[Black "Sitkauskaite, Ieva"]
[Result "1-0"]
[ECO "B76"]
[WhiteElo "1757"]
[BlackElo "1367"]
[Annotator "NA RC"]
[PlyCount "59"]
[EventDate "2020.11.20"]
[EventType "swiss"]
[EventCountry "LTU"]
[SourceTitle "playchess.com"]
[Source "ChessBase"]
[SourceQuality "1"]
[TimeControl "40/5400+30:1800+30"]

1. e4 {[%emt 0:00:00]} c5 {[%emt 0:00:00]} 2. Nf3 {[%emt 0:00:00]} g6 {[%emt 0:00:12]} 3. d4 {[%emt 0:00:37]} cxd4 {[%emt 0:00:21]} 4. Nxd4 {[%emt 0:00:08]} Bg7 {[%emt 0:00:31]} 5. Nc3 {[%emt 0:00:32]} Nc6 {[%emt 0:00:54]} 6. Be3 {[%emt 0:01:06]} d6 {[%emt 0:02:08]} 7. Qd2 {[%emt 0:01:34]} Nf6 {[%emt 0:02:31]} 8. f3 {[%emt 0:03:06]} O-O {[%emt 0:01:22]} 9. O-O-O {[%emt 0:00:53]} Bd7 {[%emt 0:01:59]} 10. Kb1 {[%emt 0:07:15]} Rc8 {[%emt 0:09:05]} 11. g4 {[%emt 0:02:40]} Ne5 {[%emt 0:03:04]} 12. Be2 {[%emt 0:12:31]} Nc4 {[%emt 0:07:05]} 13. Bxc4 {[%emt 0:00:55]} Rxc4 {[%emt 0:00:19]} 14. h4 {[%emt 0:00:11]} h5 {[%emt 0:05:22]} 15. gxh5 {[%emt 0:07:14]} Nxh5 {[%emt 0:01:52]} 16. Nb3 {[%emt 0:00:27]} a5 {[%emt 0:11:30]} 17. Nd5 {[%emt 0:11:12]} a4 {[%emt 0:16:43]} 18. Na5 {[%emt 0:04:27]} Bc3 {[%emt 0:09:25]} 19. Nxc3 {[%emt 0:09:15]} Qxa5 {[%emt 0:00:25]} 20. Nd5 {[%emt 0:03:13]} Qd8 {[%emt 0:02:56]} 21. Bb6 {[%emt 0:05:59]} Qe8 {[%emt 0:02:56]} 22. Qg5 {[%emt 0:05:03]} f6 {[%emt 0:06:28]} 23. Qh6 {[%emt 0:00:11]} Qf7 {[%emt 0:01:46]} 24. Rdg1 {[%emt 0:01:19]} Be8 {[%emt 0:01:49]} 25. Rxg6+ {[%emt 0:00:12]} Qxg6 {[%emt 0:03:41]} 26. Nxe7+ {[%emt 0:00:07]} Kf7 {[%emt 0:00:09]} 27. Nxg6 {[%emt 0:00:12]} Rg8 {[%emt 0:01:29]} 28. Qxh5 {[%emt 0:00:04]} Kg7 {[%emt 0:01:30]} 29. Rg1 {[%emt 0:00:21]} Bxg6 {[%emt 0:01:01]} 30. Qxg6+ {[%emt 0:00:11]} 1-0

[Event "LTU-ch Women 2020"]
[Site "Vilnius"]
[Date "2020.11.21"]
[Round "2.1"]
[White "Bajoraite, Rita"]
[Black "Baginskaite, Kamile"]
[Result "0-1"]
[ECO "E10"]
[WhiteElo "1741"]
[BlackElo "2141"]
[Annotator "NA"]
[PlyCount "84"]
[EventDate "2020.11.20"]
[EventType "swiss"]
[EventCountry "LTU"]
[SourceTitle "playchess.com"]
[Source "ChessBase"]
[SourceQuality "1"]
[TimeControl "40/5400+30:1800+30"]

1. d4 {[%emt 0:00:00]} Nf6 {[%emt 0:01:41]} 2. c4 {[%emt 0:00:18]} e6 {[%emt 0:02:44]} 3. Nf3 {[%emt 0:01:57]} d5 {[%emt 0:00:48]} 4. e3 {[%emt 0:00:22]} Be7 {[%emt 0:00:08]} 5. Bd3 {[%emt 0:00:59]} O-O {[%emt 0:00:12]} 6. O-O {[%emt 0:00:15]} b6 {[%emt 0:01:47]} 7. Nc3 {[%emt 0:00:15]} Bb7 {[%emt 0:00:23]} 8. Re1 {[%emt 0:04:56]} c5 {[%emt 0:10:59]} 9. cxd5 $11 {[%emt 0:18:21]} cxd4 {[%emt 0:10:13]} 10. exd4 {[%emt 0:02:38]} Nxd5 {[%emt 0:00:29]} 11. Ne4 {[%emt 0:03:02]} Nd7 {[%emt 0:02:45]} 12. Bg5 {[%emt 0:15:34]} N7f6 {[%emt 0:10:18]} 13. Qe2 {[%emt 0:13:22]} Nb4 {[%emt 0:03:46]} 14. Nxf6+ {[%emt 0:09:03]} Bxf6 {[%emt 0:02:27]} 15. Bxf6 {[%emt 0:00:05]} Qxf6 {[%emt 0:00:25]} 16. Be4 {[%emt 0:00:44]} Bxe4 {[%emt 0:09:19]} 17. Qxe4 {[%emt 0:00:02]} Qg6 {[%emt 0:00:07]} 18. Ne5 {[%emt 0:06:38]} Qxe4 {[%emt 0:05:24]} 19. Rxe4 {[%emt 0:00:01]} Rac8 {[%emt 0:00:09]} 20. a3 {[%emt 0:01:50]} Nd5 {[%emt 0:01:41]} 21. Re2 {[%emt 0:00:51]} Rfd8 {[%emt 0:08:14]} 22. g3 {[%emt 0:01:09]} Ne7 {[%emt 0:00:55]} 23. Rd1 {[%emt 0:01:42]} Nf5 {[%emt 0:01:23]} 24. Red2 {[%emt 0:00:25]} Rd5 {[%emt 0:00:40]} 25. f4 {[%emt 0:06:09]} h5 {[%emt 0:08:18]} 26. Kf2 {[%emt 0:00:17]} Nd6 {[%emt 0:01:27]} 27. Ke2 {[%emt 0:01:46]} Ne4 {[%emt 0:01:20]} 28. Rd3 {[%emt 0:03:06]} f6 {[%emt 0:07:21]} 29. Ke3 {[%emt 0:00:47]} Nd6 {[%emt 0:00:31]} 30. Rc3 {[%emt 0:04:26]} fxe5 {[%emt 0:01:43]} 31. fxe5 {[%emt 0:00:09]} Nc4+ {[%emt 0:03:58]} 32. Ke4 {[%emt 0:00:17]} b5 {[%emt 0:00:04]} 33. a4 {[%emt 0:02:01]} b4 {[%emt 0:00:39]} 34. Rb3 {[%emt 0:00:39]} a5 {[%emt 0:00:21]} 35. Rf3 {[%emt 0:00:42]} Nxb2 {[%emt 0:00:37]} 36. Rdf1 {[%emt 0:00:49]} Nxa4 {[%emt 0:00:42]} 37. Rf7 {[%emt 0:00:23]} Rcd8 {[%emt 0:00:37]} 38. Re7 {[%emt 0:00:29]} Rxd4+ {[%emt 0:00:12]} 39. Ke3 {[%emt 0:00:06]} Rd3+ {[%emt 0:00:16]} 40. Kf2 {[%emt 0:01:24]} Rf8+ {[%emt 0:00:43]} 41. Ke2 {[%emt 0:30:33]} Rxf1 {[%emt 0:30:15]} 42. Kxd3 {[%emt 0:00:07]} b3 {[%emt 0:00:17]} 0-1

[Event "LTU-ch Women 2020"]
[Site "Vilnius"]
[Date "2020.11.21"]
[Round "2.2"]
[White "Ravlusevic, Evelina"]
[Black "Sibajeva, Marija"]
[Result "1-0"]
[ECO "D02"]
[WhiteElo "1581"]
[BlackElo "1910"]
[Annotator "NA"]
[PlyCount "61"]
[EventDate "2020.11.20"]
[EventType "swiss"]
[EventCountry "LTU"]
[SourceTitle "playchess.com"]
[Source "ChessBase"]
[SourceQuality "1"]
[TimeControl "40/5400+30:1800+30"]

1. d4 {[%emt 0:00:00]} d5 {[%emt 0:00:00]} 2. Nf3 {[%emt 0:00:00]} Nf6 {[%emt 0:00:00]} 3. Bf4 {[%emt 0:00:02]} g6 {[%emt 0:00:12]} 4. e3 {[%emt 0:04:45]} Bg7 {[%emt 0:00:07]} 5. h3 {[%emt 0:00:11]} O-O {[%emt 0:00:07]} 6. Be2 {[%emt 0:00:05]} c5 {[%emt 0:00:18]} 7. c3 {[%emt 0:00:16]} Qb6 {[%emt 0:02:43]} 8. Qb3 {[%emt 0:01:15]} c4 {[%emt 0:00:30]} 9. Qxb6 {[%emt 0:00:24]} axb6 {[%emt 0:00:06]} 10. Nbd2 {[%emt 0:00:35]} Nc6 {[%emt 0:02:22]} 11. Ne5 {[%emt 0:02:35]} Nd7 {[%emt 0:05:01]} 12. Nxd7 {[%emt 0:00:38]} Bxd7 {[%emt 0:00:08]} 13. Bf3 {[%emt 0:12:45]} Ra5 {[%emt 0:06:49]} 14. b4 {[%emt 0:09:55]} cxb3 {[%emt 0:00:36]} 15. Nxb3 {[%emt 0:00:15]} Ra3 {[%emt 0:00:09]} 16. Bxd5 {[%emt 0:03:38]} Rfa8 {[%emt 0:00:12]} 17. O-O {[%emt 0:02:07]} e6 {[%emt 0:10:22]} 18. Bf3 {[%emt 0:15:00]} Bf8 {[%emt 0:15:05]} 19. Bc7 {[%emt 0:10:49]} b5 {[%emt 0:03:09]} 20. e4 {[%emt 0:12:48]} Rc8 {[%emt 0:21:10]} 21. Bb6 {[%emt 0:05:00]} Nb8 {[%emt 0:04:51]} 22. Rfc1 {[%emt 0:04:56]} Bh6 {[%emt 0:03:25]} 23. Rc2 {[%emt 0:00:30]} b4 {[%emt 0:06:43]} 24. c4 {[%emt 0:04:51]} Ba4 {[%emt 0:00:14]} 25. Rb2 {[%emt 0:05:42]} Rxc4 {[%emt 0:01:56]} 26. Na5 {[%emt 0:02:01]} Rc2 {[%emt 0:01:41]} 27. Rxb4 {[%emt 0:00:38]} Bf4 {[%emt 0:04:38]} 28. Bd1 {[%emt 0:01:29]} Bd2 {[%emt 0:06:20]} 29. Rxa4 {[%emt 0:00:27]} Rxa4 {[%emt 0:02:00]} 30. Bxc2 {[%emt 0:00:06]} Bxa5 {[%emt 0:00:19]} 31. Bxa4 {[%emt 0:00:18]} 1-0

[Event "LTU-ch Women 2020"]
[Site "Vilnius"]
[Date "2020.11.21"]
[Round "2.3"]
[White "Plutaite, Ausra"]
[Black "Perminaite, Guoda"]
[Result "1/2-1/2"]
[ECO "C54"]
[WhiteElo "1400"]
[BlackElo "1757"]
[Annotator "NA"]
[PlyCount "116"]
[EventDate "2020.11.20"]
[EventType "swiss"]
[EventCountry "LTU"]
[SourceTitle "playchess.com"]
[Source "ChessBase"]
[SourceQuality "1"]
[TimeControl "40/5400+30:1800+30"]

1. e4 {[%emt 0:00:00]} e5 {[%emt 0:02:10]} 2. Nf3 {[%emt 0:00:00]} Nc6 {[%emt 0:00:03]} 3. d4 {[%emt 0:00:00]} exd4 {[%emt 0:00:07]} 4. Bc4 {[%emt 0:00:06]} Bc5 {[%emt 0:00:07]} 5. c3 {[%emt 0:00:08]} Nf6 {[%emt 0:00:06]} 6. cxd4 {[%emt 0:00:11]} Bb4+ {[%emt 0:00:30]} 7. Bd2 {[%emt 0:00:07]} Bxd2+ {[%emt 0:00:39]} 8. Nbxd2 {[%emt 0:00:08]} d5 {[%emt 0:00:29]} 9. exd5 {[%emt 0:00:19]} Nxd5 {[%emt 0:00:08]} 10. Qb3 {[%emt 0:00:08]} Nce7 {[%emt 0:00:32]} 11. O-O {[%emt 0:00:41]} O-O {[%emt 0:01:47]} 12. Rfe1 {[%emt 0:00:11]} c6 {[%emt 0:02:34]} 13. Ne4 {[%emt 0:00:45]} h6 {[%emt 0:08:58]} 14. Ne5 {[%emt 0:09:17]} Qb6 {[%emt 0:24:55]} 15. Nc5 {[%emt 0:02:42]} Qxb3 {[%emt 0:02:39]} 16. axb3 {[%emt 0:03:47]} Rd8 {[%emt 0:04:55]} 17. g3 {[%emt 0:04:42]} Kf8 {[%emt 0:09:58]} 18. Re2 {[%emt 0:02:55]} Nc7 {[%emt 0:08:22]} 19. Nxf7 {[%emt 0:03:03]} Rxd4 {[%emt 0:00:14]} 20. Rae1 {[%emt 0:00:13]} Ned5 {[%emt 0:10:36]} 21. Nd6 {[%emt 0:02:17]} Bh3 {[%emt 0:03:13]} 22. Bxd5 {[%emt 0:02:23]} Rxd5 {[%emt 0:04:16]} 23. Ncxb7 {[%emt 0:00:10]} Kg8 {[%emt 0:01:46]} 24. Re7 {[%emt 0:01:13]} Nb5 {[%emt 0:02:01]} 25. Ne8 {[%emt 0:03:33]} Nd4 {[%emt 0:03:27]} 26. Kh1 {[%emt 0:08:34]} Nf3 {[%emt 0:01:38]} 27. Rc1 {[%emt 0:00:34]} Kf8 {[%emt 0:01:32]} 28. Re3 {[%emt 0:01:54]} Rxe8 {[%emt 0:01:39]} 29. Rxf3+ {[%emt 0:00:07]} Kg8 {[%emt 0:00:08]} 30. Kg1 {[%emt 0:02:56]} Re7 {[%emt 0:01:04]} 31. g4 {[%emt 0:01:00]} Bxg4 {[%emt 0:00:35]} 32. Rg3 {[%emt 0:00:05]} Bf5 {[%emt 0:02:06]} 33. Nc5 {[%emt 0:00:28]} g6 {[%emt 0:01:31]} 34. Na4 {[%emt 0:02:14]} Rd6 {[%emt 0:00:51]} 35. Rgc3 {[%emt 0:02:46]} Rc7 {[%emt 0:00:58]} 36. Nc5 {[%emt 0:00:06]} Kf7 {[%emt 0:00:43]} 37. Na6 {[%emt 0:00:55]} Rb7 {[%emt 0:00:34]} 38. Rxc6 {[%emt 0:02:36]} Rxc6 {[%emt 0:00:07]} 39. Rxc6 {[%emt 0:00:02]} Rxb3 {[%emt 0:00:29]} 40. Rc7+ {[%emt 0:00:11]} Kf6 {[%emt 0:00:09]} 41. Rxa7 {[%emt 0:30:07]} Rxb2 {[%emt 0:30:48]} 42. Nc5 {[%emt 0:00:42]} Rc2 {[%emt 0:00:54]} 43. Nb3 {[%emt 0:04:39]} Rc4 {[%emt 0:00:00]} 44. Nd2 {[%emt 0:00:00]} Rg4+ {[%emt 0:00:00]} 45. Kh1 {[%emt 0:00:00]} Rd4 {[%emt 0:00:00]} 46. Ra2 {[%emt 0:00:00]} Be6 {[%emt 0:00:00]} 47. Rb2 {[%emt 0:00:00]} Kf5 {[%emt 0:00:00]} 48. f3 {[%emt 0:00:00]} Bd5 {[%emt 0:00:00]} 49. Kg2 {[%emt 0:00:00]} Kf4 {[%emt 0:00:00]} 50. Ne4 {[%emt 0:00:00]} g5 {[%emt 0:00:00]} 51. h3 {[%emt 0:00:00]} Ra4 {[%emt 0:00:00]} 52. Rd2 {[%emt 0:00:00]} Ra5 {[%emt 0:00:00]} 53. Rd4 {[%emt 0:00:00]} Ra2+ {[%emt 0:00:00]} 54. Nf2+ {[%emt 0:00:00]} Ke5 {[%emt 0:00:25]} 55. Rb4 {[%emt 0:00:00]} h5 {[%emt 0:00:54]} 56. Kg3 {[%emt 0:00:00]} Ra3 {[%emt 0:00:21]} 57. Ne4 {[%emt 0:00:00]} Bxe4 {[%emt 0:02:19]} 58. Rxe4+ {[%emt 0:00:00]} Kf5 1/2-1/2

[Event "LTU-ch Women 2020"]
[Site "Vilnius"]
[Date "2020.11.21"]
[Round "2.5"]
[White "Sulikiene, Kristina"]
[Black "Sitkauskaite, Ieva"]
[Result "1-0"]
[ECO "B23"]
[WhiteElo "1892"]
[BlackElo "1367"]
[Annotator "NA"]
[PlyCount "95"]
[EventDate "2020.11.20"]
[EventType "swiss"]
[EventCountry "LTU"]
[SourceTitle "playchess.com"]
[Source "ChessBase"]
[SourceQuality "1"]
[TimeControl "40/5400+30:1800+30"]

1. e4 {[%emt 0:00:00]} c5 {[%emt 0:00:00]} 2. Nc3 {[%emt 0:00:00]} e6 {[%emt 0:00:00]} 3. g3 {[%emt 0:00:00]} d5 {[%emt 0:00:19]} 4. Bg2 {[%emt 0:00:53]} Nf6 {[%emt 0:00:42]} 5. e5 {[%emt 0:00:58]} Nfd7 {[%emt 0:01:21]} 6. f4 {[%emt 0:01:44]} Nc6 {[%emt 0:03:07]} 7. Nf3 {[%emt 0:01:03]} Be7 {[%emt 0:04:14]} 8. O-O {[%emt 0:01:32]} O-O {[%emt 0:01:39]} 9. h3 {[%emt 0:00:49]} a6 {[%emt 0:04:56]} 10. Kh2 {[%emt 0:00:55]} b5 {[%emt 0:04:04]} 11. d3 {[%emt 0:02:31]} Bb7 {[%emt 0:03:14]} 12. Bd2 {[%emt 0:03:15]} Qb6 {[%emt 0:07:59]} 13. Qe2 {[%emt 0:06:23]} b4 {[%emt 0:06:41]} 14. Nd1 {[%emt 0:01:21]} a5 {[%emt 0:07:14]} 15. Nf2 {[%emt 0:05:29]} a4 {[%emt 0:05:55]} 16. g4 {[%emt 0:01:00]} b3 {[%emt 0:05:52]} 17. axb3 {[%emt 0:10:50]} axb3 {[%emt 0:00:39]} 18. c3 {[%emt 0:01:32]} Ra2 {[%emt 0:04:11]} 19. Rab1 {[%emt 0:04:08]} Qc7 {[%emt 0:10:08]} 20. g5 {[%emt 0:08:38]} Nb6 {[%emt 0:05:00]} 21. Ng4 {[%emt 0:04:01]} Na4 {[%emt 0:04:28]} 22. Be1 {[%emt 0:04:45]} Ba6 {[%emt 0:06:05]} 23. Rg1 {[%emt 0:05:15]} c4 {[%emt 0:01:45]} 24. d4 {[%emt 0:03:11]} Ba3 {[%emt 0:01:15]} 25. Qf2 {[%emt 0:01:51]} Bxb2 {[%emt 0:07:52]} 26. Qh4 {[%emt 0:01:19]} h6 {[%emt 0:02:45]} 27. Nf6+ {[%emt 0:03:17]} Kh8 {[%emt 0:00:28]} 28. gxh6 {[%emt 0:05:32]} g6 {[%emt 0:00:08]} 29. h7 {[%emt 0:07:12]} Qd8 {[%emt 0:00:59]} 30. Qh6 {[%emt 0:00:50]} Ne7 {[%emt 0:00:32]} 31. Nd7 {[%emt 0:05:00]} Re8 {[%emt 0:00:18]} 32. Ng5 {[%emt 0:00:12]} Rf8 {[%emt 0:00:36]} 33. Nxf8 {[%emt 0:00:28]} Qe8 {[%emt 0:00:15]} 34. Nd7 {[%emt 0:03:18]} Nf5 {[%emt 0:00:27]} 35. Qf8+ {[%emt 0:00:16]} Qxf8 {[%emt 0:00:05]} 36. Nxf8 {[%emt 0:00:01]} Nh6 {[%emt 0:00:59]} 37. Bh4 {[%emt 0:00:54]} Kg7 {[%emt 0:01:22]} 38. Ngxe6+ {[%emt 0:00:14]} fxe6 {[%emt 0:00:31]} 39. Bf6+ {[%emt 0:00:03]} Kxf8 {[%emt 0:00:32]} 40. h8=Q+ {[%emt 0:00:03]} Ng8 {[%emt 0:00:26]} 41. Qg7+ {[%emt 0:30:36]} Ke8 {[%emt 0:30:12]} 42. Qxg8+ {[%emt 0:00:50]} Kd7 {[%emt 0:00:07]} 43. Qd8+ {[%emt 0:00:23]} Kc6 {[%emt 0:00:16]} 44. Qd6+ {[%emt 0:02:40]} Kb7 {[%emt 0:00:26]} 45. Qxe6 {[%emt 0:01:02]} Bxc3 {[%emt 0:00:30]} 46. Qxd5+ {[%emt 0:00:41]} Kb6 {[%emt 0:01:25]} 47. Bd8+ {[%emt 0:00:30]} Ka7 {[%emt 0:00:28]} 48. Qa8# {[%emt 0:00:07]} 1-0

[Event "LTU-ch Women 2020"]
[Site "Vilnius"]
[Date "2020.11.22"]
[Round "3.4"]
[White "Bajoraite, Rita"]
[Black "Sulikiene, Kristina"]
[Result "1-0"]
[ECO "E11"]
[WhiteElo "1741"]
[BlackElo "1892"]
[Annotator "NA"]
[PlyCount "191"]
[EventDate "2020.11.20"]
[EventType "swiss"]
[EventCountry "LTU"]
[SourceTitle "playchess.com"]
[Source "ChessBase"]
[SourceQuality "1"]
[TimeControl "40/5400+30:1800+30"]

1. d4 {[%emt 0:00:00]} Nf6 {[%emt 0:00:00]} 2. c4 {[%emt 0:00:04]} e6 {[%emt 0:00:00]} 3. Nf3 {[%emt 0:00:37]} Bb4+ {[%emt 0:00:10]} 4. Bd2 {[%emt 0:00:11]} c5 {[%emt 0:00:21]} 5. e3 {[%emt 0:00:27]} O-O {[%emt 0:01:21]} 6. Bd3 {[%emt 0:00:33]} Nc6 {[%emt 0:01:45]} 7. O-O {[%emt 0:01:01]} d6 {[%emt 0:02:38]} 8. Bxb4 {[%emt 0:12:01]} cxb4 {[%emt 0:03:42]} 9. Nbd2 {[%emt 0:18:10]} e5 {[%emt 0:01:54]} 10. Ne4 {[%emt 0:02:04]} Bg4 {[%emt 0:01:58]} 11. d5 {[%emt 0:09:18] [#]} Nxe4 $146 {[%emt 0:04:09]} ({Predecessor:} 11... Nb8 12. Ng3 Na6 13. Bf5 Bxf5 14. Nxf5 Qd7 15. N3h4 g6 16. f4 Rae8 17. fxe5 Rxe5 {½-½ (35) Amura,C (2329)-Paridar,S (2242) Khanty-Mansiysk 2010}) 12. Bxe4 {[%emt 0:07:04]} Ne7 $2 {[%emt 0:02:56] [#]} ({Black should try} 12... Nb8 $11 13. h3 Bxf3 14. Bxf3 (14. Qxf3 Nd7 $11) 14... Qc7) 13. Bxh7+ $1 {[%emt 0:05:52]} Kh8 {[%emt 0:01:59]} 14. Bc2 {[%emt 0:00:37]} ({Better is} 14. Bd3) 14... f5 {[%emt 0:03:22]} 15. h3 {[%emt 0:01:25]} Bh5 {[%emt 0:00:38]} 16. Qd2 {[%emt 0:02:26]} (16. g4 $5 fxg4 17. Nh2 $14) 16... Bxf3 {[%emt 0:03:46]} 17. gxf3 {[%emt 0:00:06]} Ng6 {[%emt 0:02:07]} 18. Kh2 {[%emt 0:01:43]} Nh4 {[%emt 0:06:15]} 19. Bd1 {[%emt 0:00:52]} f4 {[%emt 0:05:59]} ({But not} 19... Qg5 $6 20. Rg1 $16) 20. Rg1 {[%emt 0:05:47]} a5 {[%emt 0:06:17]} (20... Rc8 $11) 21. Rg4 {[%emt 0:00:39]} Qf6 {[%emt 0:03:09]} 22. exf4 {[%emt 0:06:00]} exf4 {[%emt 0:00:22] [#]} (22... Qh6 $14) 23. Qd3 $1 {[%emt 0:00:36]} Rae8 {[%emt 0:11:48]} 24. Bc2 {[%emt 0:00:35]} Qh6 {[%emt 0:06:24]} 25. Rag1 {[%emt 0:00:34]} Re7 {[%emt 0:03:02]} 26. c5 {[%emt 0:11:23]} dxc5 {[%emt 0:05:59]} 27. d6 {[%emt 0:00:06]} Rd7 {[%emt 0:01:33]} 28. Qe4 {[%emt 0:00:57]} b5 {[%emt 0:05:07]} 29. Rd1 {[%emt 0:04:34]} c4 {[%emt 0:04:28]} 30. Qe7 $4 {[%emt 0:01:06]} (30. Rd5 $18 {and all is fine.}) 30... Nxf3+ $2 {[%emt 0:00:51]} (30... Rxe7 $19 31. dxe7 Rg8) 31. Kg2 {[%emt 0:00:31]} Rxe7 {[%emt 0:04:00]} 32. dxe7 {[%emt 0:00:01]} Rg8 {[%emt 0:02:46]} 33. Kxf3 {[%emt 0:03:11]} Qxh3+ {[%emt 0:00:27]} (33... g5 $5 34. h4 $8 Qe6 35. hxg5 Re8 36. Rh4+ Kg8 $11) 34. Kxf4 {[%emt 0:00:19] [#]} g5+ $1 {[%emt 0:00:54]} 35. Kf5 {[%emt 0:04:15]} Re8 {[%emt 0:02:30]} 36. Kxg5 {[%emt 0:00:44]} Rxe7 $2 {[%emt 0:01:28]} (36... Kg7 $1 $11 {and Black is okay.} 37. Rdg1 Rxe7 38. Kf4+ Kf8 39. Rg8+ Kf7 40. R8g7+ Kf8 41. Rg8+ Kf7 42. R8g7+ Kf8 43. Rg8+) 37. Rh4+ {[%emt 0:01:32]} Qxh4+ 38. Kxh4 {[%emt 0:00:12]} Re2 {[%emt 0:00:37]} (38... Re5 $142 39. Rd2 c3) 39. Rd8+ $2 {[%emt 0:00:07]} ({White should try} 39. Kg5 $18 Kg8 40. Rd8+ Kg7 41. Bf5 Rxb2 42. Rd7+ Kf8 43. Kf6) 39... Kg7 {[%emt 0:00:22]} 40. Bf5 {[%emt 0:00:30]} ({Of course not} 40. Rd7+ Kf6 $17) 40... Rxf2 {[%emt 0:01:09]} (40... Kf6 $1 $11 41. Kg4 (41. Rf8+ Ke7 $15) 41... Rxb2) 41. Kg5 {[%emt 0:30:14]} Rg2+ {[%emt 0:30:52]} 42. Bg4 {[%emt 0:00:12]} c3 {[%emt 0:00:00]} 43. Rd7+ {[%emt 0:00:00]} Kg8 {[%emt 0:00:00]} 44. bxc3 {[%emt 0:00:00]} bxc3 {[%emt 0:00:00]} 45. Rc7 {[%emt 0:00:00]} b4 {[%emt 0:00:00] [#]} 46. Kf4 {[%emt 0:00:00]} (46. Kf5 $1 $16) 46... a4 {[%emt 0:00:00]} (46... Kf8 $11) 47. Bf5 $16 {[%emt 0:00:00]} Rd2 {[%emt 0:00:00]} 48. Ke3 {[%emt 0:00:00]} Kf8 {[%emt 0:00:00]} 49. Rc4 {[%emt 0:00:00]} Rb2 {[%emt 0:00:00]} 50. Bd7 {[%emt 0:00:00]} a3 {[%emt 0:00:00]} 51. Ba4 {[%emt 0:00:00]} Ke7 {[%emt 0:00:00]} 52. Bb3 {[%emt 0:00:00]} Rh2 {[%emt 0:00:00]} 53. Rxb4 {[%emt 0:00:00]} Rh3+ {[%emt 0:00:43]} 54. Ke2 {[%emt 0:00:00]} Kd6 {[%emt 0:00:28]} 55. Kd1 {[%emt 0:00:00]} Kc5 {[%emt 0:01:01]} 56. Rc4+ {[%emt 0:00:00]} Kb5 {[%emt 0:00:26]} 57. Kc2 {[%emt 0:00:00]} Rh2+ {[%emt 0:00:53]} 58. Kxc3 {[%emt 0:00:00]} Rh3+ {[%emt 0:00:18]} 59. Kc2 {[%emt 0:00:00]} Rh2+ {[%emt 0:00:14]} 60. Kb1 {[%emt 0:00:00]} Rh1+ {[%emt 0:01:08]} 61. Rc1 {[%emt 0:00:00]} Rh2 {[%emt 0:00:12]} 62. Bc2 {[%emt 0:00:00]} Kb4 {[%emt 0:00:31]} 63. Bd3 {[%emt 0:00:00]} Rb2+ {[%emt 0:00:17]} 64. Ka1 {[%emt 0:00:00]} Rd2 {[%emt 0:00:44]} 65. Rc4+ {[%emt 0:00:00]} Ka5 {[%emt 0:00:07]} 66. Bc2 {[%emt 0:00:34]} Rh2 {[%emt 0:00:40]} 67. Be4 {[%emt 0:02:05]} Rf2 {[%emt 0:00:56]} 68. Kb1 {[%emt 0:00:36]} Rb2+ {[%emt 0:00:07]} 69. Ka1 {[%emt 0:00:14]} Rf2 {[%emt 0:00:27]} 70. Bd3 {[%emt 0:01:29]} Rd2 {[%emt 0:01:25]} 71. Bc2 {[%emt 0:00:38]} Kb5 {[%emt 0:00:30]} 72. Bb3 {[%emt 0:01:53]} Rg2 {[%emt 0:00:48]} 73. Kb1 {[%emt 0:01:25]} Rg1+ {[%emt 0:01:01]} 74. Rc1 {[%emt 0:00:22]} Rg4 {[%emt 0:00:32]} 75. Rd1 {[%emt 0:00:23]} Kb4 {[%emt 0:00:14]} 76. Kc2 {[%emt 0:00:14]} Rh4 {[%emt 0:00:27]} 77. Rd2 {[%emt 0:00:10]} Rg4 {[%emt 0:00:24]} 78. Bd5 {[%emt 0:00:55]} Rh4 {[%emt 0:00:24]} 79. Re2 {[%emt 0:00:23]} Kc5 {[%emt 0:00:34]} 80. Be6 {[%emt 0:00:34]} Kb4 {[%emt 0:00:19]} 81. Bf5 {[%emt 0:00:24]} Rc4+ {[%emt 0:00:54]} 82. Kd2 {[%emt 0:00:25]} Rc7 {[%emt 0:00:51]} 83. Re4+ {[%emt 0:00:20]} Ka5 {[%emt 0:00:31]} 84. Kd3 {[%emt 0:00:53]} Rc5 {[%emt 0:00:27]} 85. Bd7 {[%emt 0:00:59]} Rc1 {[%emt 0:01:00]} 86. Ra4+ {[%emt 0:01:10]} Kb6 {[%emt 0:00:06]} 87. Be6 {[%emt 0:00:42]} Rg1 {[%emt 0:00:16]} 88. Rb4+ {[%emt 0:01:07]} Ka5 {[%emt 0:00:18]} 89. Rb3 {[%emt 0:00:23]} Rd1+ {[%emt 0:01:58]} 90. Kc4 {[%emt 0:00:28]} Rc1+ {[%emt 0:00:28]} 91. Rc3 {[%emt 0:00:30]} Re1 {[%emt 0:00:13]} 92. Kc5 {[%emt 0:00:33]} Re5+ {[%emt 0:00:45]} 93. Bd5 {[%emt 0:00:02]} Ka4 {[%emt 0:00:26]} 94. Rb3 {[%emt 0:00:37]} Re1 {[%emt 0:01:07]} 95. Rb8 {[%emt 0:00:51]} Rc1+ {[%emt 0:00:50]} 96. Bc4 {[%emt 0:00:09]} 1-0